bitfinex/quotes_BTCUSD_20251015
["timestamp","ask_amount","ask_price","bid_price","bid_amount"]
[1760570710658,0.61112066,111060.0,111050.0,0.18009905]
[1760570710852,0.18009905,111050.0,111040.0,0.18011527]
[1760570711053,0.61950701,111060.0,111040.0,0.29323527]
[1760570711054,0.2252478,111060.0,111040.0,0.29323527]
[1760570711261,0.95950698,111060.0,111050.0,0.11312]
[1760570711442,0.95950698,111060.0,111040.0,0.18011527]
[1760570711638,0.95950698,111060.0,111050.0,0.11312]
[1760570711843,0.95955704,111060.0,111050.0,0.11312]
[1760570711983,0.95955704,111060.0,111040.0,0.18011527]
[1760570712188,0.96055704,111060.0,111050.0,0.11312]
[1760570712390,0.96155704,111060.0,111050.0,0.11312]
[1760570712589,0.96155704,111060.0,111040.0,0.18011527]
[1760570712800,0.96055733,111060.0,111050.0,0.11312]
[1760570713019,0.03650548,111060.0,111050.0,0.29321905]
[1760570713266,0.03650548,111060.0,111050.0,0.18009905]
[1760570713267,0.00105006,111060.0,111050.0,0.18009905]
[1760570713472,0.00205006,111060.0,111050.0,0.18009905]
[1760570713700,0.00205006,111060.0,111050.0,0.29321905]
[1760570713905,0.00105006,111060.0,111050.0,0.29321905]
[1760570714102,0.00105006,111060.0,111050.0,0.18009905]
[1760570714309,0.00105006,111060.0,111050.0,0.29321905]
[1760570714697,0.00105006,111060.0,111050.0,0.18009905]
[1760570714902,0.00105006,111060.0,111050.0,0.29321905]
[1760570715094,5.006e-05,111060.0,111050.0,0.29321905]
[1760570715534,0.00105006,111060.0,111050.0,0.29321905]
[1760570715935,5.006e-05,111060.0,111050.0,0.29321905]
[1760570716471,0.0006384,111060.0,111050.0,0.29321905]
[1760570716890,0.0006384,111060.0,111050.0,0.38290917]
[1760570717266,0.0006384,111060.0,111050.0,0.38286917]
[1760570717782,0.0006384,111060.0,111050.0,0.26978917]
[1760570717975,0.0006384,111060.0,111050.0,0.38286917]
[1760570721694,0.0006384,111060.0,111050.0,0.76853075]
[1760570722514,0.0006384,111060.0,111050.0,0.65545075]
[1760570722714,0.0006384,111060.0,111050.0,0.76853075]
[1760570723136,0.0006384,111060.0,111050.0,0.38286917]
[1760570723547,0.38629998,111060.0,111050.0,0.38286917]
[1760570723766,0.38629998,111060.0,111050.0,0.26978917]
[1760570723975,0.56638281,111060.0,111050.0,0.38286917]
[1760570724184,0.56638281,111060.0,111050.0,0.26978917]
[1760570724793,0.38629998,111060.0,111050.0,0.26978917]
[1760570725585,0.38629998,111060.0,111050.0,0.38286917]
[1760570726427,0.38629998,111060.0,111050.0,0.26978917]
[1760570726836,0.38629998,111060.0,111050.0,0.38286917]
[1760570727036,0.38629998,111060.0,111050.0,0.26978917]
[1760570727237,0.56638281,111060.0,111050.0,0.38286917]
[1760570727664,0.38629998,111060.0,111050.0,0.38286917]
[1760570727916,0.38629998,111060.0,111050.0,0.26978917]
[1760570728120,0.38629998,111060.0,111050.0,0.38286917]
[1760570728358,0.56638281,111060.0,111050.0,0.38286917]
[1760570728564,0.38629998,111060.0,111050.0,0.38286917]
[1760570730355,0.38629998,111060.0,111050.0,0.26978917]
[1760570730531,0.38629998,111060.0,111050.0,0.38286917]
[1760570730971,0.38629998,111060.0,111050.0,0.26978917]
[1760570731181,0.95204439,111060.0,111050.0,0.18009905]
[1760570731386,0.56638281,111060.0,111050.0,0.29317905]
[1760570731709,0.56638281,111060.0,111050.0,0.11308]
[1760570731912,0.56638281,111060.0,111050.0,0.29317905]
[1760570732114,0.56638281,111060.0,111050.0,0.18009905]
[1760570732317,0.18072123,111060.0,111050.0,0.29317905]
[1760570732511,0.56638281,111060.0,111050.0,0.29317905]
[1760570732712,0.56638281,111060.0,111050.0,0.18009905]
[1760570733157,0.56638281,111060.0,111050.0,0.29317905]
[1760570733357,0.56638281,111060.0,111050.0,0.18009905]
[1760570733591,0.95204439,111060.0,111050.0,0.18009905]
[1760570733803,0.95204439,111060.0,111050.0,0.29317905]
[1760570734019,0.95204439,111060.0,111040.0,0.23419527]
[1760570734240,0.56576063,111050.0,111040.0,0.32388539]
[1760570734455,0.56576063,111050.0,111040.0,0.43696539]
[1760570734900,0.38566158,111050.0,111040.0,0.43696539]
[1760570735365,0.56638281,111060.0,111050.0,0.18009905]
[1760570735647,0.56638281,111060.0,111050.0,0.29317905]
[1760570735867,0.56638281,111060.0,111050.0,0.18009905]
[1760570736317,0.56638281,111060.0,111050.0,0.29317905]
[1760570736510,0.56638281,111060.0,111050.0,0.18009905]
[1760570736979,0.56638281,111060.0,111050.0,0.29317905]
[1760570737800,0.56638281,111060.0,111050.0,0.18009905]
[1760570738024,0.38629998,111060.0,111050.0,0.29317905]
[1760570738728,0.38629998,111060.0,111050.0,0.18009905]
[1760570738927,0.38629998,111060.0,111050.0,0.29317905]
[1760570740083,0.95204439,111060.0,111040.0,0.26980539]
[1760570740276,0.38566158,111050.0,111040.0,0.26980539]
[1760570740613,0.38566158,111050.0,111040.0,0.38288539]
[1760570741208,0.56576063,111050.0,111040.0,0.11308]
[1760570741541,0.18011527,111040.0,111030.0,0.24321806]
[1760570741739,0.56577685,111040.0,111030.0,0.33290818]
[1760570741946,0.56577685,111040.0,111030.0,0.44598818]
[1760570742144,0.56577685,111040.0,111030.0,0.16716]
[1760570742444,0.38566158,111040.0,111030.0,0.34729149]
[1760570742647,0.38566158,111040.0,111030.0,0.23421149]
[1760570742846,0.38566158,111040.0,111030.0,0.34729149]
[1760570743048,0.38566158,111040.0,111030.0,0.23521149]
[1760570743384,0.18009905,111050.0,111030.0,0.23521149]
[1760570743385,0.56576063,111050.0,111030.0,0.34829149]
[1760570744173,0.56576063,111050.0,111040.0,0.29319527]
[1760570744394,0.56576063,111050.0,111040.0,0.18011527]
[1760570745676,0.56576063,111050.0,111040.0,0.29319527]
[1760570745870,0.56576063,111050.0,111040.0,0.18011527]
[1760570746073,0.56576063,111050.0,111040.0,0.29319527]
[1760570746391,0.56576063,111050.0,111040.0,0.11308]
[1760570747203,0.56576063,111050.0,111030.0,0.18013149]
[1760570747405,0.18013149,111030.0,111020.0,0.05408]
[1760570747620,0.56579307,111030.0,111020.0,0.23422772]
[1760570747962,0.38566158,111030.0,111020.0,0.34730772]
[1760570748148,0.5749142,111030.0,111020.0,0.34730772]
[1760570748570,0.56577685,111040.0,111030.0,0.18013149]
[1760570748774,0.56577685,111040.0,111030.0,0.29321149]
[1760570748967,0.56577685,111040.0,111030.0,0.18013149]
[1760570749118,0.56577685,111040.0,111030.0,0.11308]
[1760570749542,0.18013149,111030.0,111020.0,0.23422772]
[1760570749792,0.56577685,111040.0,111020.0,0.34730772]
[1760570749974,0.56577685,111040.0,111030.0,0.11308]
[1760570750582,0.95143843,111040.0,111030.0,0.11308]
[1760570750825,0.18013149,111030.0,111020.0,0.23422772]
[1760570751010,0.56579307,111030.0,111020.0,0.34730772]
[1760570751220,0.32418995,111030.0,111020.0,0.34730772]
[1760570752028,0.50432144,111030.0,111020.0,0.34730772]
[1760570752394,0.51332318,111030.0,111020.0,0.34730772]
[1760570753348,0.33319169,111030.0,111020.0,0.34730772]
[1760570753540,0.51332318,111030.0,111020.0,0.34730772]
[1760570753743,0.51332318,111030.0,111020.0,0.23422772]
[1760570753899,0.18913323,111030.0,111020.0,0.34730772]
[1760570754293,0.57479481,111030.0,111020.0,0.23422772]
[1760570754495,0.57479481,111030.0,111020.0,0.34730772]
[1760570754923,0.57479481,111030.0,111020.0,0.23422772]
[1760570755294,0.57479481,111030.0,111020.0,0.34730772]
[1760570756433,0.57479481,111030.0,111020.0,0.23422772]
[1760570756634,0.57479481,111030.0,111020.0,0.34730772]
[1760570757067,0.57479481,111030.0,111020.0,0.23422772]
[1760570757285,0.57479481,111030.0,111020.0,0.34730772]
[1760570757507,0.18013149,111030.0,111020.0,0.34730772]
[1760570757926,0.18013149,111030.0,111020.0,0.23422772]
[1760570758136,0.18013149,111030.0,111020.0,0.34730772]
[1760570758423,0.18934885,111030.0,111020.0,0.16716]
[1760570758621,0.57501043,111030.0,111020.0,0.34730772]
[1760570759018,0.57501043,111030.0,111020.0,0.29322772]
[1760570760191,0.18013149,111030.0,111020.0,0.29322772]
[1760570760411,0.59284947,111040.0,111030.0,0.18013149]
[1760570760617,0.02707262,111040.0,111030.0,0.18013149]
[1760570760838,0.18011527,111040.0,111030.0,0.11308]
[1760570761041,0.60183712,111050.0,111030.0,0.31122463]
[1760570761256,0.60183712,111050.0,111030.0,0.29321149]
[1760570761670,0.18011527,111040.0,111030.0,0.29321149]
[1760570762086,0.18011527,111040.0,111030.0,0.18013149]
[1760570762290,0.56577685,111040.0,111030.0,0.29321149]
[1760570762491,0.18011527,111040.0,111030.0,0.29321149]
[1760570762741,0.56577685,111040.0,111030.0,0.29321149]
[1760570763323,0.56577685,111040.0,111030.0,0.18013149]
[1760570763536,0.61120745,111050.0,111030.0,0.29321149]
[1760570764157,0.18011527,111040.0,111030.0,0.29321149]
[1760570765145,0.18011527,111040.0,111030.0,0.11308]
[1760570765412,0.56577685,111040.0,111030.0,0.11308]
[1760570765804,0.56577685,111040.0,111030.0,0.31122463]
[1760570766009,0.56577685,111040.0,111030.0,0.29321149]
[1760570766466,0.18011527,111040.0,111030.0,0.29321149]
[1760570766684,0.18011527,111040.0,111030.0,0.18013149]
[1760570766888,0.02707154,111050.0,111040.0,0.18011527]
[1760570767125,0.18072123,111060.0,111050.0,0.18009905]
[1760570767532,0.18986731,111060.0,111050.0,0.29317905]
[1760570767742,0.18072123,111060.0,111050.0,0.29317905]
[1760570767951,0.0006384,111060.0,111050.0,0.29317905]
[1760570768139,0.0006384,111060.0,111050.0,0.18009905]
[1760570768387,0.0006384,111060.0,111050.0,0.29317905]
[1760570768814,0.0006384,111060.0,111050.0,0.56576063]
[1760570769027,0.0006384,111060.0,111050.0,0.76853075]
[1760570771753,0.0006384,111060.0,111050.0,0.65545075]
[1760570771934,0.0006384,111060.0,111050.0,0.76853075]
[1760570772979,0.0006384,111060.0,111050.0,0.65545075]
[1760570773190,0.0006384,111060.0,111050.0,0.76853075]
[1760570773592,0.0006384,111060.0,111050.0,0.65545075]
[1760570773812,0.0006384,111060.0,111050.0,0.76853075]
[1760570774255,0.0006384,111060.0,111050.0,0.76953075]
[1760570775396,0.0006384,111060.0,111050.0,0.65645075]
[1760570775597,0.0006384,111060.0,111050.0,0.76953075]
[1760570776211,0.0006384,111060.0,111050.0,0.65645075]
[1760570776347,0.0006384,111060.0,111050.0,0.76953075]
[1760570776757,0.0006384,111060.0,111050.0,0.65645075]
[1760570776957,0.0006384,111060.0,111050.0,0.76953075]
[1760570777386,0.0006384,111060.0,111050.0,0.27078917]
[1760570777591,0.0006384,111060.0,111050.0,0.76953075]
[1760570778157,0.0006384,111060.0,111050.0,0.71053075]
[1760570778366,0.0006384,111060.0,111050.0,0.82361075]
[1760570778589,0.0006384,111060.0,111050.0,0.82357075]
[1760570778833,0.3946641,111080.0,111060.0,0.18006865]
[1760570779036,0.57476636,111080.0,111070.0,0.11304]
[1760570779246,0.57476636,111080.0,111060.0,0.26975877]
[1760570779661,0.57476636,111080.0,111070.0,0.11304]
[1760570779805,0.18006662,111070.0,111060.0,0.26975877]
[1760570780002,0.18006662,111070.0,111060.0,0.38279877]
[1760570780700,0.18006662,111070.0,111060.0,0.26977295]
[1760570781077,0.5657282,111070.0,111060.0,0.26977295]
[1760570781515,0.18006662,111070.0,111060.0,0.38281295]
[1760570781919,0.18006662,111070.0,111060.0,0.26977295]
[1760570782150,0.18006662,111070.0,111060.0,0.38281295]
[1760570782597,0.18006662,111070.0,111060.0,0.26977295]
[1760570782797,0.56571644,111070.0,111050.0,0.26123277]
[1760570783000,0.18008283,111060.0,111050.0,0.35092289]
[1760570783154,0.18008283,111060.0,111050.0,0.46396289]
[1760570783356,0.18006662,111070.0,111060.0,0.18008283]
[1760570783514,0.18006662,111070.0,111060.0,0.29312283]
[1760570783735,0.18006662,111070.0,111060.0,0.18008283]
[1760570783983,0.18006662,111070.0,111060.0,0.29312283]
[1760570784491,0.18006662,111070.0,111060.0,0.18008283]
[1760570784925,0.18006662,111070.0,111060.0,0.29312283]
[1760570785330,0.18006662,111070.0,111060.0,0.18008283]
[1760570785537,0.18006662,111070.0,111060.0,0.29312283]
[1760570785736,0.18006662,111070.0,111060.0,0.18008283]
[1760570785971,0.58399038,111080.0,111060.0,0.29312283]
[1760570786188,0.58399038,111080.0,111060.0,0.18008283]
[1760570786576,0.58399038,111080.0,111070.0,0.11304]
[1760570787235,0.58399038,111080.0,111060.0,0.18008283]
[1760570787439,0.58399038,111080.0,111070.0,0.11304]
[1760570787640,0.58399038,111080.0,111060.0,0.18008283]
[1760570787641,0.58399038,111080.0,111060.0,0.23416283]
[1760570788018,0.18006662,111070.0,111060.0,0.23416283]
[1760570788219,0.18006662,111070.0,111060.0,0.34720283]
[1760570788823,0.18006662,111070.0,111060.0,0.23416283]
[1760570789044,0.18006662,111070.0,111060.0,0.34720283]
[1760570789863,0.58399038,111080.0,111060.0,0.34720283]
[1760570790027,0.18006662,111070.0,111060.0,0.34720283]
[1760570790224,0.00058827,111070.0,111060.0,0.34720283]
[1760570791396,0.18065489,111070.0,111060.0,0.34720283]
[1760570791598,0.00058827,111070.0,111060.0,0.23416283]
[1760570791803,0.00058827,111070.0,111060.0,0.34720283]
[1760570791984,0.18065489,111070.0,111060.0,0.34720283]
[1760570792540,0.00058827,111070.0,111060.0,0.34720283]
[1760570793362,0.18065489,111070.0,111060.0,0.34720283]
[1760570793812,0.00058827,111070.0,111060.0,0.34720283]
[1760570794766,0.00058827,111070.0,111060.0,0.23416283]
[1760570794963,0.18065489,111070.0,111060.0,0.34720283]
[1760570795187,0.18065489,111070.0,111060.0,0.23416283]
[1760570795389,0.18065489,111070.0,111060.0,0.34720283]
[1760570795930,0.18006662,111070.0,111060.0,0.34720283]
[1760570796381,0.18845413,111070.0,111060.0,0.23416283]
[1760570796585,0.53022292,111080.0,111060.0,0.23416283]
[1760570796746,0.53861065,111080.0,111060.0,0.23416283]
[1760570796919,0.53861065,111080.0,111070.0,0.11304]
[1760570797118,0.18006662,111070.0,111060.0,0.23416283]
[1760570797324,0.18845748,111070.0,111060.0,0.34720283]
[1760570798365,0.18845748,111070.0,111060.0,0.23416283]
[1760570798568,0.18845748,111070.0,111060.0,0.34720283]
[1760570798772,0.00839086,111070.0,111060.0,0.34720283]
[1760570798951,0.53920196,111080.0,111060.0,0.34720283]
[1760570799118,0.53920196,111080.0,111060.0,0.23416283]
[1760570799518,0.53920196,111080.0,111070.0,0.11304]
[1760570799790,0.18006662,111070.0,111060.0,0.23416283]
[1760570799936,0.18845748,111070.0,111060.0,0.23416283]
[1760570800576,0.18845748,111070.0,111060.0,0.34720283]
[1760570801539,0.18845748,111070.0,111060.0,0.23416283]
[1760570801885,0.18845748,111070.0,111060.0,0.34720283]
[1760570802288,0.18845748,111070.0,111060.0,0.23416283]
[1760570802893,0.18845748,111070.0,111060.0,0.34720283]
[1760570803118,0.18845748,111070.0,111060.0,0.23416283]
[1760570803326,0.18845748,111070.0,111060.0,0.34720283]
[1760570803518,0.18845748,111070.0,111060.0,0.23416283]
[1760570803744,0.18845748,111070.0,111060.0,0.34720283]
[1760570804719,0.18845748,111070.0,111060.0,0.23416283]
[1760570804936,0.18845748,111070.0,111060.0,0.34720283]
[1760570806000,0.18845748,111070.0,111060.0,0.23416283]
[1760570806217,0.18845748,111070.0,111060.0,0.34720283]
[1760570806710,0.00324872,111070.0,111060.0,0.34720283]
[1760570806946,0.18006662,111070.0,111060.0,0.34720283]
[1760570807892,0.5308111,111080.0,111060.0,0.23416283]
[1760570808139,0.18006662,111070.0,111060.0,0.23416283]
[1760570808364,0.18006662,111070.0,111060.0,0.34720283]
[1760570810875,0.5308111,111080.0,111060.0,0.34720283]
[1760570811078,0.5308111,111080.0,111060.0,0.23416283]
[1760570811281,0.5308111,111080.0,111070.0,0.11304]
[1760570811771,0.5308111,111080.0,111060.0,0.23416283]
[1760570811969,0.18006662,111070.0,111060.0,0.23416283]
[1760570812131,0.18006662,111070.0,111060.0,0.34720283]
[1760570812532,0.18006662,111070.0,111060.0,0.23416283]
[1760570812739,0.18006662,111070.0,111060.0,0.34720283]
[1760570812934,0.18006662,111070.0,111060.0,0.23416283]
[1760570813518,0.18006662,111070.0,111060.0,0.34720283]
[1760570815579,0.18006662,111070.0,111060.0,0.23416283]
[1760570815789,0.18006662,111070.0,111060.0,0.34720283]
[1760570818145,0.18006662,111070.0,111050.0,0.27878619]
[1760570818146,0.18008283,111060.0,111050.0,0.05408]
[1760570818357,0.56573265,111060.0,111050.0,0.05408]
[1760570818779,0.56573265,111060.0,111050.0,0.16712]
[1760570818960,0.56573265,111060.0,111050.0,0.05408]
[1760570819432,0.56573265,111060.0,111050.0,0.16712]
[1760570819643,0.56573265,111060.0,111040.0,0.23419527]
[1760570819644,0.18009905,111050.0,111040.0,0.23419527]
[1760570819848,0.57412343,111060.0,111040.0,0.43692539]
[1760570819849,0.56573265,111060.0,111040.0,0.43692539]
[1760570820049,0.57412323,111060.0,111050.0,0.29313905]
[1760570820513,0.57412323,111060.0,111050.0,0.18009905]
[1760570820719,0.00839058,111060.0,111050.0,0.18009905]
[1760570820923,0.18006784,111070.0,111060.0,0.18008283]
[1760570821133,0.18845902,111070.0,111060.0,0.18008283]
[1760570821341,0.18845902,111070.0,111060.0,0.11304]
[1760570821552,0.18845902,111070.0,111060.0,0.29312283]
[1760570821762,0.18845902,111070.0,111060.0,0.18008283]
[1760570821964,0.18845902,111070.0,111060.0,0.29312283]
[1760570822165,0.18945902,111070.0,111060.0,0.29312283]
[1760570822584,0.00939118,111070.0,111060.0,0.29312283]
[1760570823077,0.001,111070.0,111060.0,0.29312283]
[1760570823701,0.002,111070.0,111060.0,0.29312283]
[1760570824117,0.001,111070.0,111060.0,0.18008283]
[1760570824343,0.1899277,111080.0,111070.0,0.18006662]
[1760570824344,0.19831805,111080.0,111070.0,0.18006662]
[1760570824587,0.1899277,111080.0,111070.0,0.18006662]
[1760570824806,0.19831803,111080.0,111070.0,0.29310662]
[1760570825757,0.19931803,111080.0,111070.0,0.18006662]
[1760570825972,0.19931803,111080.0,111070.0,0.29310662]
[1760570826703,0.20031803,111080.0,111070.0,0.18006662]
[1760570826987,0.20031803,111080.0,111070.0,0.29310662]
[1760570827216,0.18005368,111080.0,111070.0,0.29310662]
[1760570827430,0.18941334,111080.0,111070.0,0.29310662]
[1760570828332,0.18941334,111080.0,111070.0,0.18006662]
[1760570828543,0.18941334,111080.0,111070.0,0.29310662]
[1760570828760,0.18941334,111080.0,111070.0,0.18006662]
[1760570829182,0.57506316,111080.0,111070.0,0.29310662]
[1760570829399,0.57506316,111080.0,111070.0,0.18006662]
[1760570829605,0.57506316,111080.0,111070.0,0.29310662]
[1760570830017,0.57506316,111080.0,111070.0,0.18006662]
[1760570830221,0.57506316,111080.0,111070.0,0.29310662]
[1760570831473,0.57506316,111080.0,111070.0,0.18006662]
[1760570831677,0.57506316,111080.0,111070.0,0.29310662]
[1760570832339,0.57506316,111080.0,111070.0,0.18006662]
[1760570832537,0.57506316,111080.0,111070.0,0.29310662]
[1760570834547,0.57506316,111080.0,111060.0,0.05408]
[1760570834730,0.56571644,111070.0,111050.0,0.243144]
[1760570835092,0.56573265,111060.0,111050.0,0.23413893]
[1760570835219,0.38564982,111060.0,111050.0,0.23413893]
[1760570835430,0.56571644,111070.0,111050.0,0.23413893]
[1760570835641,0.56573265,111060.0,111040.0,0.2431514]
[1760570835843,0.56574887,111050.0,111040.0,0.2431514]
[1760570836049,0.38564982,111050.0,111040.0,0.2431514]
[1760570836246,0.38564982,111050.0,111040.0,0.3561914]
[1760570836781,0.56574887,111050.0,111040.0,0.23415363]
[1760570836990,0.56574887,111050.0,111040.0,0.34719363]
[1760570837191,0.56574887,111050.0,111040.0,0.23415363]
[1760570837498,0.56574887,111050.0,111040.0,0.34719363]
[1760570837661,0.56574887,111050.0,111040.0,0.23415363]
[1760570837862,0.56574887,111050.0,111040.0,0.34719363]
[1760570838293,0.56574887,111050.0,111040.0,0.23415363]
[1760570838506,0.56574887,111050.0,111040.0,0.34719363]
[1760570839173,0.56574887,111050.0,111030.0,0.18012416]
[1760570839382,0.56576509,111040.0,111030.0,0.18013149]
[1760570839761,0.56576509,111040.0,111030.0,0.11304]
[1760570839936,0.56576509,111040.0,111020.0,0.2432351]
[1760570840304,0.56576509,111040.0,111030.0,0.29317149]
[1760570840518,0.56576509,111040.0,111030.0,0.18018155]
[1760570840722,0.56576509,111040.0,111030.0,0.29322155]
[1760570841326,0.56576509,111040.0,111030.0,0.18018155]
[1760570841728,0.56576509,111040.0,111030.0,0.29322155]
[1760570841944,0.56576509,111040.0,111030.0,5.006e-05]
[1760570842363,0.56576509,111040.0,111030.0,0.11309006]
[1760570842774,0.56576509,111040.0,111030.0,5.006e-05]
[1760570842978,0.56576509,111040.0,111030.0,0.11309006]
[1760570843402,0.56604529,111040.0,111030.0,0.11309006]
[1760570843811,0.56604529,111040.0,111030.0,5.006e-05]
[1760570844235,0.56604529,111040.0,111030.0,0.11309006]
[1760570844657,0.56604529,111040.0,111030.0,5.006e-05]
[1760570844876,0.56604529,111040.0,111030.0,0.11309006]
[1760570845526,0.56604529,111040.0,111030.0,5.006e-05]
[1760570845723,0.56604529,111040.0,111030.0,0.11309006]
[1760570846808,0.56604529,111040.0,111030.0,5.006e-05]
[1760570847018,0.95197531,111040.0,111030.0,0.11309006]
[1760570847227,0.95197531,111040.0,111030.0,5.006e-05]
[1760570848069,0.18011527,111040.0,111030.0,0.11309006]
[1760570848283,0.95197531,111040.0,111030.0,5.006e-05]
[1760570848481,0.95197531,111040.0,111030.0,0.11309006]
[1760570848692,0.95297531,111040.0,111030.0,0.11309006]
[1760570848919,0.95297531,111040.0,111030.0,5.006e-05]
[1760570849351,0.95297531,111040.0,111030.0,0.11309006]
[1760570850044,0.95297531,111040.0,111030.0,5.006e-05]
[1760570850244,0.95297531,111040.0,111030.0,0.11309006]
[1760570850694,0.95297531,111040.0,111030.0,5.006e-05]
[1760570851356,0.95297531,111040.0,111030.0,0.11309006]
[1760570851569,0.95297531,111040.0,111030.0,5.006e-05]
[1760570851784,0.95297531,111040.0,111030.0,0.11309006]
[1760570852005,0.95297531,111040.0,111030.0,5.006e-05]
[1760570853544,0.95297531,111040.0,111030.0,0.11309006]
[1760570854605,1.05102067,111040.0,111030.0,5.006e-05]
[1760570854854,1.05102067,111040.0,111030.0,0.11309006]
[1760570855080,1.07809566,111040.0,111030.0,0.11309006]
[1760570855739,1.07809566,111040.0,111030.0,5.006e-05]
[1760570856201,1.07809566,111040.0,111030.0,0.11309006]
[1760570856416,1.41809566,111040.0,111030.0,5.006e-05]
[1760570856838,1.41809566,111040.0,111030.0,0.11309006]
[1760570857736,1.41809566,111040.0,111030.0,5.006e-05]
[1760570858384,1.41809566,111040.0,111030.0,0.11309006]
[1760570859229,1.45406973,111040.0,111030.0,0.11309006]
[1760570859644,1.45406973,111040.0,111030.0,5.006e-05]
[1760570859848,1.45406973,111040.0,111030.0,0.11309006]
[1760570860286,1.45406973,111040.0,111030.0,5.006e-05]
[1760570860710,1.45406973,111040.0,111030.0,0.11309006]
[1760570861805,1.45406973,111040.0,111030.0,5.006e-05]
[1760570862013,1.45408253,111040.0,111030.0,0.11309006]
[1760570862670,1.45408253,111040.0,111030.0,5.006e-05]
[1760570863120,1.84001255,111040.0,111030.0,0.11309006]
[1760570863331,1.86417661,111040.0,111030.0,5.006e-05]
[1760570864030,1.96587691,111040.0,111030.0,0.11089006]
[1760570864251,0.18018018,111000.0,110990.0,0.05408]
[1760570864459,1.06682358,111000.0,110990.0,0.05413006]
[1760570864698,1.06682358,111000.0,110990.0,0.16717006]
[1760570864930,1.06682358,111000.0,110990.0,0.05413006]
[1760570865123,1.11317907,111000.0,110990.0,0.16717006]
[1760570865405,1.11317907,111000.0,110990.0,0.05413006]
[1760570865619,1.45317907,111000.0,110990.0,0.05413006]
[1760570865984,1.83910909,111000.0,110990.0,0.05413006]
[1760570866201,1.91815546,111000.0,110990.0,5.006e-05]
[1760570866407,1.83910909,111000.0,110990.0,5.006e-05]
[1760570866609,1.83910909,111000.0,110990.0,0.09557006]
[1760570866806,1.8632026,111000.0,110990.0,5.006e-05]
[1760570867400,1.87972405,111000.0,110990.0,5.006e-05]
[1760570867648,1.88072405,111000.0,110990.0,0.09121006]
[1760570867863,1.88072405,111000.0,110990.0,5.006e-05]
[1760570868089,1.88072405,111000.0,110990.0,0.11313006]
[1760570868511,1.85663081,111000.0,110990.0,0.11313006]
[1760570868735,1.85663081,111000.0,110990.0,5.006e-05]
[1760570868941,1.89281309,111000.0,110990.0,0.09121006]
[1760570869180,1.89281309,111000.0,110990.0,5.006e-05]
[1760570869805,1.89281309,111000.0,110990.0,0.11313006]
[1760570870878,1.90117236,111000.0,110990.0,0.11313006]
[1760570871287,1.91789091,111000.0,110990.0,0.11313006]
[1760570871491,1.90953164,111000.0,110990.0,0.11313006]
[1760570871670,1.90953164,111000.0,110990.0,5.006e-05]
[1760570871936,1.89281309,111000.0,110990.0,5.006e-05]
[1760570872120,1.91789065,111000.0,110990.0,0.11313006]
[1760570872537,1.91789065,111000.0,110990.0,5.006e-05]
[1760570872738,1.91789065,111000.0,110990.0,0.11313006]
[1760570872959,0.73600708,111000.0,110990.0,0.11313006]
[1760570873155,1.89379714,111000.0,110990.0,0.11313006]
[1760570874106,1.67412101,111000.0,110990.0,0.11313006]
[1760570874310,1.85430119,111000.0,110990.0,5.006e-05]
[1760570874526,1.85430119,111000.0,110990.0,0.11313006]
[1760570875230,1.85430119,111000.0,110990.0,5.006e-05]
[1760570875429,1.85430119,111000.0,110990.0,0.11313006]
[1760570875836,1.85430119,111000.0,110990.0,5.006e-05]
[1760570876058,1.85430119,111000.0,110990.0,0.11313006]
[1760570876448,1.85430119,111000.0,110990.0,5.006e-05]
[1760570876653,1.85430119,111000.0,110990.0,0.11313006]
[1760570877656,1.85430119,111000.0,110990.0,5.006e-05]
[1760570877862,1.83758281,111000.0,110990.0,0.11313006]
[1760570878064,1.8542703,111000.0,110990.0,0.11313006]
[1760570878283,1.8542703,111000.0,110990.0,5.006e-05]
[1760570878489,1.8542703,111000.0,110990.0,0.11313006]
[1760570878874,1.8542703,111000.0,110990.0,5.006e-05]
[1760570879103,0.69648024,111000.0,110990.0,0.11313006]
[1760570879313,1.46834028,111000.0,110990.0,0.11313006]
[1760570880394,1.432158,111000.0,110990.0,5.006e-05]
[1760570880655,1.432158,111000.0,110990.0,0.11313006]
[1760570881174,1.431158,111000.0,110990.0,5.006e-05]
[1760570881380,1.431158,111000.0,110990.0,0.11313006]
[1760570881571,1.432158,111000.0,110990.0,0.11313006]
[1760570881816,1.36527634,111000.0,110990.0,5.006e-05]
[1760570882061,1.35387785,111000.0,110990.0,0.11313006]
[1760570882405,1.35487785,111000.0,110990.0,0.11313006]
[1760570882795,1.35387785,111000.0,110990.0,0.11313006]
[1760570883255,1.35487785,111000.0,110990.0,0.11313006]
[1760570883607,1.35487785,111000.0,110990.0,5.006e-05]
[1760570883807,1.35387785,111000.0,110990.0,0.11317006]
[1760570884808,1.35387785,111000.0,110990.0,5.006e-05]
[1760570885011,1.35387785,111000.0,110990.0,0.11313006]
[1760570885214,1.35387785,111000.0,110990.0,0.11317006]
[1760570885426,1.35387785,111000.0,110990.0,5.006e-05]
[1760570885660,1.35387785,111000.0,110990.0,0.11317006]
[1760570886263,1.35387785,111000.0,110990.0,5.006e-05]
[1760570886474,1.35387785,111000.0,110990.0,0.11317006]
[1760570887511,0.58201781,111000.0,110990.0,0.11317006]
[1760570887725,1.35385479,111000.0,110990.0,0.11317006]
[1760570888337,1.35387884,111000.0,110990.0,0.11317006]
[1760570889183,1.35387546,111000.0,110990.0,0.11317006]
[1760570890856,0.24201542,111000.0,110990.0,0.29336647]
[1760570890982,0.02606649,111000.0,110990.0,0.67929649]
[1760570891218,0.001,111000.0,110990.0,0.76898661]
[1760570891446,0.001,111000.0,110990.0,1.53109891]
[1760570891652,0.001,111000.0,110990.0,1.46188682]
[1760570891869,0.001,111000.0,110990.0,0.6731933]
[1760570892082,0.57445207,111020.0,111000.0,0.18016746]
[1760570892293,0.57445207,111020.0,111010.0,0.29324394]
[1760570892504,0.18016394,111010.0,111000.0,0.27885535]
[1760570892720,0.18016394,111010.0,111000.0,0.26985758]
[1760570892927,0.18853096,111010.0,111000.0,0.26985758]
[1760570893184,0.18853096,111010.0,111000.0,0.38293758]
[1760570893381,0.18853096,111010.0,111000.0,0.26985758]
[1760570894036,0.18853096,111010.0,111000.0,0.38293758]
[1760570894265,0.51661357,111020.0,111000.0,0.26985758]
[1760570894514,0.18016394,111010.0,111000.0,0.26985758]
[1760570894736,0.18016394,111010.0,111000.0,0.38293758]
[1760570895183,0.51661357,111020.0,111000.0,0.38293758]
[1760570895425,0.53333829,111020.0,111010.0,0.18016394]
[1760570895652,0.53333829,111020.0,111010.0,0.29324394]
[1760570896320,0.53333829,111020.0,111010.0,0.11308]
[1760570896537,0.53333829,111020.0,111000.0,0.26985758]
[1760570896741,0.53333829,111020.0,111010.0,0.11308]
[1760570896969,0.58280921,111020.0,111010.0,0.29324394]
[1760570897174,0.56608449,111020.0,111000.0,0.26985758]
[1760570897390,0.18016394,111010.0,111000.0,0.26985758]
[1760570897639,0.56608449,111020.0,111010.0,0.18016394]
[1760570897875,0.56608449,111020.0,111010.0,0.11308]
[1760570898369,0.18016394,111010.0,111000.0,0.32393758]
[1760570898618,0.18016394,111010.0,111000.0,0.43701758]
[1760570898854,0.18016394,111010.0,111000.0,0.32393758]
[1760570899299,0.18016394,111010.0,111000.0,0.43701758]
[1760570899738,0.18015447,111020.0,111010.0,0.18016394]